fUST/lending_fUST_20240201
["ID","MTS","AMOUNT","RATE_DAILY","PERIOD"]
[313118500,1706767839259,-500.0,0.00024899,2]
[313118502,1706767839267,-500.0,0.00024899,2]
[313118504,1706767839277,-500.0,0.00024899,2]
[313118506,1706767839286,-500.0,0.00024899,2]
[313118508,1706767839295,-171.39595961,0.00024899,2]
[313118509,1706767839304,-500.0,0.00024899,2]
[313118511,1706767839313,-287.3034547,0.00024899,2]
[313118513,1706767839322,-500.0,0.00024899,2]
[313118515,1706767839331,-500.0,0.00024899,2]
[313118517,1706767839340,-473.96714372,0.00024899,2]
[313118519,1706767839349,-500.0,0.00024899,2]
[313118521,1706767839358,-500.0,0.00024899,2]
[313118523,1706767839368,-500.0,0.00024899,2]
[313118525,1706767839378,-500.0,0.00024899,2]
[313118527,1706767839387,-500.0,0.00024899,2]
[313118529,1706767839396,-500.0,0.00024899,2]
[313118531,1706767839405,-500.0,0.00024899,2]
[313118533,1706767839414,-500.0,0.00024899,2]
[313118535,1706767839426,-500.0,0.00024899,2]
[313118537,1706767839435,-500.0,0.00024899,2]
[313118539,1706767839444,-500.0,0.00024899,2]
[313118541,1706767839453,-500.0,0.00024899,2]
[313118543,1706767839462,-500.0,0.00024899,2]
[313118545,1706767839471,-500.0,0.00024899,2]
[313118547,1706767839480,-615.46639729,0.00024899,2]
[313118549,1706767839489,-500.0,0.00024899,2]
[313118551,1706767839500,-500.0,0.00024899,2]
[313118553,1706767839509,-500.0,0.00024899,2]
[313118555,1706767839518,-500.0,0.00024899,2]
[313118557,1706767839527,-500.0,0.00024899,2]
[313118558,1706767839536,-500.0,0.00024899,2]
[313118560,1706767839545,-500.0,0.00024899,2]
[313118562,1706767839554,-500.0,0.00024899,2]
[313118564,1706767839564,-500.0,0.00024899,2]
[313118566,1706767839573,-500.0,0.00024899,2]
[313118568,1706767839582,-500.0,0.00024899,2]
[313118570,1706767839592,-500.0,0.00024899,2]
[313118572,1706767839601,-500.0,0.00024899,2]
[313118574,1706767839610,-500.0,0.00024899,2]
[313118576,1706767839619,-522.55434682,0.00024899,2]
[313118578,1706767839628,-500.0,0.00024899,2]
[313118580,1706767839637,-363.56926825,0.00024899,2]
[313118582,1706767839646,-500.0,0.00024899,2]
[313118584,1706767839655,-500.0,0.00024899,2]
[313118586,1706767839665,-500.0,0.00024899,2]
[313118588,1706767839674,-500.0,0.00024899,2]
[313118590,1706767839683,-500.0,0.00024899,2]
[313118592,1706767839693,-500.0,0.00024899,2]
[313118594,1706767839702,-500.0,0.00024899,2]
[313118596,1706767839711,-499.99999999,0.00024899,2]
[313118598,1706767839720,-290420.05624221,0.000249,2]
[313118600,1706767839729,-500.0,0.00024915,2]
[313118602,1706767839738,-662.94,0.00024916,2]
[313118604,1706767839748,-500.0,0.00024917,2]
[313118606,1706767839758,-500.0,0.00024917,2]
[313118608,1706767839767,-842.77,0.00024917,2]
[313118610,1706767839777,-499.42473756,0.0002496,5]
[313118612,1706767839786,-1026.08287796,0.00025,2]
[313118614,1706767839795,-4732.83381239,0.00025,2]
[313118616,1706767839804,-8700.1390739,0.00025,2]
[313118618,1706767839813,-1830.14346345,0.00025,2]
[313118620,1706767839822,-155.01550155,0.00025,2]
[313118622,1706767839831,-168.88418216,0.00025,2]
[313118624,1706767839840,-500.0,0.00025189,2]
[313118626,1706767839850,-662.94,0.0002519,2]
[313118628,1706767839859,-500.0,0.00025191,2]
[313118630,1706767839870,-500.0,0.00025191,2]
[313118632,1706767839883,-842.77,0.00025191,2]
[313118634,1706767839892,-155.01550155,0.00025198,4]
[313118636,1706767839901,-5666.08756416,0.00025297,2]
[313118641,1706767839945,-1640.46942817,0.00025297,2]
[313118643,1706767839954,-300.0,0.000253,12]
[313118645,1706767839963,-700.0,0.00025315,2]
[313118647,1706767839973,-372.57954172,0.00025315,2]
[313118649,1706767839984,-1156.6432218,0.00025315,2]
[313119351,1706767847825,-500.0,0.00022999,2]
[313119353,1706767847834,-1261.69149652,0.00023,2]
[313119355,1706767847844,-500.0,0.00023273,2]
[313119357,1706767847853,-500.0,0.00023547,2]
[313119359,1706767847863,-558.53529205,0.00025315,2]
[313119361,1706767847876,-228.28619513,0.00025315,2]
[313119363,1706767847885,-500.0,0.00025463,2]
[313119364,1706767847894,-662.94,0.00025464,2]
[313119366,1706767847903,-500.0,0.00025465,2]
[313119368,1706767847913,-500.0,0.00025465,2]
[313119370,1706767847922,-842.77,0.00025465,2]
[313119372,1706767847932,-151.0,0.00025652,2]
[313119373,1706767847941,-500.0,0.00025737,2]
[313119374,1706767847952,-662.94,0.00025738,2]
[313119375,1706767847961,-500.0,0.00025739,2]
[313119376,1706767847970,-500.0,0.00025739,2]
[313119377,1706767847980,-842.77,0.00025739,2]
[313119378,1706767847989,-2913.34218215,0.000259,2]
[313119379,1706767847999,-1863.56960394,0.00025999,3]
[313119380,1706767848008,-241.72862398,0.00026,2]
[313119381,1706767848018,-4336.18692286,0.00026,2]
[313119382,1706767848027,-500.0,0.00026011,2]
[313119383,1706767848037,-662.94,0.00026012,2]
[313119384,1706767848048,-500.0,0.00026013,2]
[313119385,1706767848058,-500.0,0.00026013,2]
[313119386,1706767848067,-842.77,0.00026013,2]
[313119387,1706767848076,-225.36130024,0.00026285,2]
[313119388,1706767848088,-274.63869976,0.00026285,2]
[313119389,1706767848098,-662.94,0.00026286,2]
[313119391,1706767848107,-500.0,0.00026287,2]
[313119393,1706767848116,-500.0,0.00026287,2]
[313119394,1706767848126,-842.77,0.00026287,2]
[313119395,1706767848136,-151.0,0.00026404,2]
[313119396,1706767848145,-5000.0,0.00026432,2]
[313119397,1706767848155,-500.0,0.00026559,2]
[313119398,1706767848164,-662.94,0.0002656,2]
[313119399,1706767848174,-500.0,0.00026561,2]
[313119400,1706767848183,-500.0,0.00026561,2]
[313119401,1706767848194,-733.54920735,0.00026561,2]
[313119402,1706767848206,-109.22079265,0.00026561,2]
[313119403,1706767848216,-4106.58421227,0.00026586,5]
[313119405,1706767848227,-255.13554226,0.00026586,5]
[313119546,1706769041639,-717.29668093,0.0002155,2]
[313119547,1706769041648,-1200.31274669,0.0002155,2]
[313119548,1706769041657,-500.0,0.00021551,2]
[313119549,1706769041667,-331.5653294,0.00021565,2]
[313119550,1706769041676,-2037.9288444,0.00022,2]
[313119551,1706769041685,-3885.49639858,0.00022,2]
[313119602,1706769043555,-90.44842876,0.00022,2]
[313119604,1706769043564,-426.74292046,0.00022,2]
[313119605,1706769043574,-327.87136116,0.00022239,2]
[313119607,1706769043583,-166.666666,0.00022241,2]
[313119609,1706769043593,-169.991464,0.00022352,2]
[313119611,1706769043602,-166.666666,0.00022848,2]
[313119613,1706769043611,-2908.13744402,0.000229,2]
[313119616,1706769043623,-23.05924236,0.000229,2]
[313119618,1706769043632,-495.55075764,0.00023268,2]
[313119620,1706769043644,-766.14073888,0.00023268,2]
[313119622,1706769043653,-744.11926112,0.00023269,2]
[313119626,1706769043665,-861.211647,0.00023269,2]
[313119629,1706769043677,-795.558353,0.00023269,2]
[313119737,1706769710340,561.0,0.0003,120]
[313119757,1706770232661,-155.01550155,0.00020727,4]
[313119759,1706770232671,-155.01550155,0.00020728,2]
[313119760,1706770232681,-717.29668093,0.00020729,2]
[313119761,1706770232690,-3170.65535838,0.0002073,2]
[313119796,1706770238719,-2047.44240287,0.0002073,2]
[313119798,1706770238729,-1857.66500198,0.00020731,2]
[313119800,1706770238739,-169.845061,0.00020746,2]
[313119802,1706770238748,-176.740816,0.00021042,2]
[313119804,1706770238757,-1954.13112426,0.00021169,2]
[313119806,1706770238767,-1553.8566855,0.00021336,2]
[313119808,1706770238776,-350.86529267,0.00021336,2]
[313119809,1706770238785,-169.991463,0.00021417,2]
[313119812,1706770238795,-20000.0,0.00021417,2]
[313119814,1706770238805,-3000.0,0.000218,2]
[313119815,1706770238815,-166.666666,0.00021918,2]
[313119817,1706770238824,-2037.9288444,0.00022,2]
[313119818,1706770238833,-293.96652096,0.00022,4]
[313119819,1706770238842,-3975.94482734,0.00022,2]
[313119820,1706770238851,-426.74292046,0.00022,2]
[313119821,1706770238861,-327.87136116,0.0002243,2]
[313119822,1706770238870,-166.666666,0.00022431,2]
[313119823,1706770238880,-166.666666,0.00022944,2]
[313119824,1706770238889,-8762.58,0.00022989,3]
[313119825,1706770238898,-500.0,0.00022989,2]
[313119826,1706770238907,-500.0,0.00022989,2]
[313119827,1706770238916,-10515.1,0.0002299,3]
[313119828,1706770238926,-170.80139394,0.00022998,2]
[313119829,1706770238935,-205.98932295,0.00022998,2]
[313119830,1706770238943,-303.01478586,0.00022998,2]
[313119831,1706770238952,-169.06516204,0.00022998,2]
[313119832,1706770238961,-155.84248261,0.00022998,2]
[313119833,1706770238970,-1821.60364567,0.00022998,2]
[313119834,1706770238979,-649.64714204,0.00022998,2]
[313119835,1706770238987,-4414.70893004,0.00022998,2]
[313119836,1706770238996,-156.29035891,0.00022998,2]
[313119837,1706770239005,-174.4528693,0.00022999,2]
[313119839,1706770239014,-156.48410249,0.00022999,2]
[313119841,1706770239023,-330.81493432,0.00022999,2]
[313119843,1706770239032,-500.0,0.00022999,2]
[313119845,1706770239041,-500.0,0.00022999,2]
[313119847,1706770239051,-500.0,0.00022999,2]
[313119849,1706770239060,-504.59476754,0.00022999,2]
[313119851,1706770239069,-500.0,0.00022999,2]
[313119853,1706770239078,-500.0,0.00022999,2]
[313119855,1706770239087,-562.53,0.00022999,2]
[313119857,1706770239096,-500.0,0.00022999,2]
[313119859,1706770239105,-795.45,0.00022999,2]
[313119861,1706770239114,-500.0,0.00022999,2]
[313119863,1706770239124,-500.0,0.00022999,2]
[313119865,1706770239133,-500.0,0.00022999,2]
[313119867,1706770239142,-500.0,0.00022999,2]
[313119869,1706770239151,-500.0,0.00022999,2]
[313119871,1706770239160,-500.0,0.00022999,2]
[313119873,1706770239168,-500.0,0.00022999,2]
[313119874,1706770239177,-500.0,0.00022999,2]
[313119876,1706770239186,-500.0,0.00022999,2]
[313119878,1706770239197,-511.05,0.00022999,2]
[313119879,1706770239206,-500.0,0.00022999,2]
[313119880,1706770239215,-865.5,0.00022999,2]
[313119882,1706770239224,-302.26519309,0.00022999,2]
[313119884,1706770239234,-19111.12484416,0.00023,2]
[313119886,1706770239243,-1261.69149652,0.00023,2]
[313119888,1706770239252,-308.41355284,0.00023034,2]
[313119890,1706770239261,-222.82766287,0.00023158,2]
[313119892,1706770239270,-222.82766287,0.00023169,2]
[313119894,1706770239279,-156.64846019,0.00023247,2]
[313119895,1706770239288,-12618.11,0.00023257,3]
[313119896,1706770239298,-503.92603728,0.00023258,2]
[313119897,1706770239307,-500.0,0.00023263,2]
[313119898,1706770239316,-155.50134467,0.00023266,2]
[313119899,1706770239324,-529.37669299,0.00023266,2]
[313119900,1706770239333,-155.43134264,0.00023266,2]
[313119902,1706770239342,-13552.82211001,0.00023267,2]
[313119903,1706770239351,-156.03180818,0.00023267,2]
[313119904,1706770239360,-155.6433265,0.00023267,2]
[313119905,1706770239369,-176.71754094,0.00023267,2]
[313119906,1706770239378,-230.72258642,0.00023267,2]
[313119907,1706770239387,-641.57342989,0.00023267,2]
[313119908,1706770239397,-1246.36855371,0.00023267,2]
[313119909,1706770239406,-1582.96154034,0.00023267,2]
[313119910,1706770239415,-6799.23859091,0.00023268,2]
[313119911,1706770239424,-156.07947287,0.00023268,2]
[313119912,1706770239434,-156.69239856,0.00023268,2]
[313119913,1706770239443,-612.41080233,0.00023268,2]
[313119914,1706770239452,-155.3981296,0.00023268,2]
[313119915,1706770239461,-155.91470064,0.00023268,2]
[313119916,1706770239470,-500.0,0.00023268,2]
[313119917,1706770239480,-171.39595961,0.00023268,2]
[313119918,1706770239489,-500.0,0.00023268,2]
[313119919,1706770239498,-500.0,0.00023268,2]
[313119920,1706770239507,-500.0,0.00023268,2]
[313119921,1706770239516,-500.0,0.00023268,2]
[313119922,1706770239525,-500.0,0.00023268,2]
[313119923,1706770239534,-500.0,0.00023268,2]
[313119924,1706770239542,-500.0,0.00023268,2]
[313119925,1706770239551,-500.0,0.00023268,2]
[313119926,1706770239560,-500.0,0.00023268,2]
[313119927,1706770239569,-500.0,0.00023268,2]
[313119928,1706770239580,-214.11458046,0.00023268,2]
[313119929,1706770239589,-500.0,0.00023268,2]
[313119930,1706770239598,-500.0,0.00023268,2]
[313119931,1706770239607,-500.0,0.00023268,2]
[313119932,1706770239616,-500.0,0.00023268,2]
[313119933,1706770239625,-500.0,0.00023268,2]
[313119934,1706770239634,-500.0,0.00023268,2]
[313119935,1706770239643,-500.0,0.00023268,2]
[313119936,1706770239656,-500.0,0.00023268,2]
[313119937,1706770239666,-500.0,0.00023268,2]
[313119938,1706770239676,-500.0,0.00023268,2]
[313119939,1706770239686,-500.0,0.00023268,2]
[313119940,1706770239695,-500.0,0.00023268,2]
[313119941,1706770239705,-500.0,0.00023268,2]
[313119942,1706770239714,-500.0,0.00023268,2]
[313119943,1706770239724,-615.46639729,0.00023268,2]
[313119944,1706770239734,-473.96714372,0.00023268,2]
[313119945,1706770239744,-500.0,0.00023268,2]
[313119946,1706770239752,-500.0,0.00023268,2]
[313119947,1706770239762,-500.0,0.00023268,2]
[313119948,1706770239771,-500.0,0.00023268,2]
[313119949,1706770239780,-500.0,0.00023268,2]
[313119950,1706770239789,-500.0,0.00023268,2]
[313119951,1706770239798,-287.3034547,0.00023268,2]
[313119952,1706770239808,-500.0,0.00023268,2]
[313119953,1706770239818,-500.0,0.00023268,2]
[313119954,1706770239827,-500.0,0.00023268,2]
[313119955,1706770239836,-500.0,0.00023268,2]
[313119956,1706770239846,-500.0,0.00023268,2]
[313119957,1706770239856,-500.0,0.00023268,2]
[313119958,1706770239866,-500.0,0.00023268,2]
[313119959,1706770239877,-500.0,0.00023268,2]
[313119960,1706770239886,-363.56926825,0.00023268,2]
[313119961,1706770239896,-500.0,0.00023268,2]
[313119962,1706770239905,-522.55434682,0.00023268,2]
[313119963,1706770239914,-500.0,0.00023268,2]
[313119964,1706770239924,-500.0,0.00023268,2]
[313119965,1706770239935,-500.0,0.00023268,2]
[313119966,1706770239943,-500.0,0.00023268,2]
[313119967,1706770239953,-500.0,0.00023268,2]
[313119968,1706770239962,-500.0,0.00023268,2]
[313119969,1706770239973,-499.99999999,0.00023268,2]
[313119970,1706770239983,-374094.49243462,0.00023269,2]
[313119971,1706770239995,-7108.94370751,0.00023269,2]
[313120006,1706770241864,-327.87136116,0.00022,2]
[313120007,1706770241874,-141.58662962,0.00023269,2]
[313120071,1706770243765,-500.0,0.00022999,2]
[313120073,1706770243775,-7302.15,0.00023259,3]
[313120074,1706770243784,-1152.55357465,0.00023269,2]
[313120088,1706770246818,-155.01550155,0.00023268,4]
[313120089,1706770246828,-717.29668093,0.00023268,2]
[313120090,1706770246838,-2957.27950616,0.00023269,2]
[313120145,1706771431883,-717.29668093,0.00020962,2]
[313120147,1706771431893,-979.05366966,0.00020962,2]
[313120211,1706771438107,-590.12981611,0.00020962,2]
[313120213,1706771438118,-288.48151621,0.00020962,2]
[313120215,1706771438127,-500.0,0.00020998,2]
[313120217,1706771438137,-286.64422187,0.00021,2]
[313120220,1706771438153,-12397.15215929,0.00021,2]
[313120222,1706771438162,-155.01550155,0.00021166,2]
[313120224,1706771438171,-1486.41359352,0.00021169,2]
[313120226,1706771438181,-17162.71308325,0.00021336,2]
[313120228,1706771438190,-3218.0087031,0.00021336,2]
[313120230,1706771438199,-1691.92011685,0.00021336,2]
[313120232,1706771438208,-462.48440033,0.000217,2]
[313120234,1706771438217,-20000.0,0.00021788,2]
[313120236,1706771438226,-6085.12,0.00021788,3]
[313120238,1706771438235,-541.15,0.00021797,2]
[313120240,1706771438244,-527.90218491,0.00021797,2]
[313120242,1706771438253,-506.81610052,0.00021798,2]
[313120244,1706771438263,-503.54903623,0.00021798,2]
[313120246,1706771438272,-539.09,0.00021798,2]
[313120248,1706771438281,-507.35740571,0.00021798,2]
[313120250,1706771438290,-505.2109281,0.00021798,2]
[313120252,1706771438299,-500.0,0.00021798,2]
[313120254,1706771438308,-500.0,0.00021798,2]
[313120255,1706771438318,-1235.04,0.00021798,2]
[313120257,1706771438327,-574.96158171,0.00021798,2]
[313120259,1706771438336,-500.0,0.00021798,2]
[313120261,1706771438345,-508.23983449,0.00021798,2]
[313120263,1706771438354,-500.0,0.00021798,2]
[313120265,1706771438364,-500.0,0.00021798,2]
[313120267,1706771438373,-500.0,0.00021798,2]
[313120268,1706771438382,-516.26866858,0.00021798,2]
[313120270,1706771438391,-507.95221549,0.00021798,2]
[313120271,1706771438401,-500.0,0.00021798,2]
[313120272,1706771438410,-500.0,0.00021798,2]
[313120273,1706771438420,-624.15640998,0.00021798,2]
[313120274,1706771438428,-502.09785927,0.00021798,2]
[313120275,1706771438438,-508.68146929,0.00021798,2]
[313120276,1706771438446,-512.55032361,0.00021798,2]
[313120278,1706771438455,-447.40634005,0.00021798,2]
[313120279,1706771438465,-500.0,0.00021798,2]
[313120280,1706771438474,-505.97331896,0.00021798,2]
[313120281,1706771438484,-500.0,0.00021798,2]
[313120282,1706771438493,-829.43,0.00021798,2]
[313120283,1706771438502,-5614.70025909,0.00021799,2]
[313120284,1706771438511,-3000.0,0.000218,2]
[313120285,1706771438521,-166.666666,0.00021918,2]
[313120286,1706771438531,-286.10469845,0.00021998,2]
[313120287,1706771438540,-4327.68495935,0.00021998,2]
[313120288,1706771438549,-385.77371078,0.00021998,2]
[313120289,1706771438559,-2037.9288444,0.00022,2]
[313120290,1706771438568,-293.96652096,0.00022,4]
[313120291,1706771438577,-327.87136116,0.00022,2]
[313120292,1706771438587,-3975.94482734,0.00022,2]
[313120293,1706771438596,-426.74292046,0.0002207,2]
[313120294,1706771438605,-541.15,0.00022071,2]
[313120295,1706771438614,-539.09,0.00022072,2]
[313120296,1706771438624,-500.0,0.00022072,2]
[313120297,1706771438633,-500.0,0.00022072,2]
[313120298,1706771438642,-1235.04,0.00022072,2]
[313120299,1706771438653,-500.0,0.00022072,2]
[313120300,1706771438662,-500.0,0.00022072,2]
[313120301,1706771438674,-638.52,0.00022072,2]
[313120302,1706771438683,-500.0,0.00022072,2]
[313120303,1706771438693,-500.0,0.00022072,2]
[313120304,1706771438703,-500.0,0.00022072,2]
[313120305,1706771438712,-500.0,0.00022072,2]
[313120306,1706771438722,-500.0,0.00022072,2]
[313120307,1706771438731,-829.43,0.00022072,2]
[313120308,1706771438740,-541.15,0.00022345,2]
[313120309,1706771438749,-539.09,0.00022346,2]
[313120310,1706771438759,-500.0097031,0.00022346,2]
[313120311,1706771438769,-500.0,0.00022346,2]
[313120312,1706771438778,-1235.04,0.00022346,2]
[313120313,1706771438787,-500.0,0.00022346,2]
[313120314,1706771438798,-500.0,0.00022346,2]
[313120315,1706771438809,-500.0,0.00022346,2]
[313120316,1706771438818,-500.0,0.00022346,2]
[313120317,1706771438827,-500.0,0.00022346,2]
[313120318,1706771438837,-500.0,0.00022346,2]
[313120319,1706771438847,-829.43,0.00022346,2]
[313120320,1706771438864,-166.666666,0.00022431,2]
[313120321,1706771438877,-541.15,0.00022619,2]
[313120322,1706771438886,-539.09,0.0002262,2]
[313120323,1706771438897,-500.0,0.0002262,2]
[313120324,1706771438907,-1235.04,0.0002262,2]
[313120325,1706771438917,-500.0,0.0002262,2]
[313120326,1706771438927,-500.0,0.0002262,2]
[313120327,1706771438936,-503.03,0.0002262,2]
[313120328,1706771438946,-500.0,0.0002262,2]
[313120329,1706771438956,-382.17927722,0.0002262,2]
[313120330,1706771438966,-500.0,0.0002262,2]
[313120331,1706771438975,-829.43,0.0002262,2]
[313120332,1706771438986,-541.15,0.00022893,2]
[313120333,1706771438995,-539.09,0.00022894,2]
[313120334,1706771439004,-500.0,0.00022894,2]
[313120335,1706771439014,-1235.04,0.00022894,2]
[313120336,1706771439026,-500.0,0.00022894,2]
[313120337,1706771439036,-500.0,0.00022894,2]
[313120338,1706771439046,-500.0,0.00022894,2]
[313120339,1706771439055,-500.0,0.00022894,2]
[313120340,1706771439065,-829.43,0.00022894,2]
[313120341,1706771439074,-166.666666,0.00022944,2]
[313120342,1706771439084,-500.0,0.00022989,2]
[313120343,1706771439093,-536.87163581,0.00022989,2]
[313120344,1706771439104,-44.74429874,0.00022999,2]
[313120373,1706771444459,-500.0,0.00021798,2]
[313120375,1706771444469,-327.87136116,0.0002207,2]
[313120376,1706771444479,-717.29668093,0.00022998,2]
[313120377,1706771444489,-265.3177137,0.00022999,2]
[313120378,1706771444498,-500.0,0.00022999,2]
[313120379,1706771444507,-500.0,0.00022999,2]
[313120380,1706771444517,-509.03407911,0.00022999,2]
[313120381,1706771444526,-500.0,0.00022999,2]
[313120382,1706771444535,-500.0,0.00022999,2]
[313120383,1706771444545,-500.0,0.00022999,2]
[313120384,1706771444554,-500.0,0.00022999,2]
[313120385,1706771444564,-6416.5867899,0.00023,2]
[313120397,1706771626656,462.936163,0.0003,120]
[313120439,1706772638148,-717.29668093,0.00019828,2]
[313120440,1706772638158,-1857.66500198,0.00019829,2]
[313120441,1706772638167,-1791.93207344,0.00019833,2]
[313120708,1706773838378,-423.15929872,0.00016411,2]
[313120709,1706773838387,-155.01550155,0.00017659,2]
[313120710,1706773838397,-308.41355284,0.0001766,2]
[313120711,1706773838405,-717.29668093,0.00017836,2]
[313120712,1706773838414,-500.0,0.00017837,2]
[313120713,1706773838423,-155.3981296,0.00017838,2]
[313120714,1706773838431,-155.6433265,0.00017838,2]
[313120715,1706773838440,-1246.36855371,0.00017838,2]
[313120716,1706773838449,-155.50134467,0.00017838,2]
[313120717,1706773838458,-230.72258642,0.00017838,2]
[313120718,1706773838467,-176.71754094,0.00017838,2]
[313120719,1706773838476,-6799.23859091,0.00017838,2]
[313120720,1706773838485,-156.03180818,0.00017838,2]
[313120721,1706773838495,-641.57342989,0.00017838,2]
[313120722,1706773838504,-529.37669299,0.00017838,2]
[313120723,1706773838513,-155.43134264,0.00017838,2]
[313120724,1706773838522,-174.4528693,0.00017838,2]
[313120725,1706773838531,-156.48410249,0.00017838,2]
[313120726,1706773838540,-156.64846019,0.00017838,2]
[313120727,1706773838549,-330.81493432,0.00017838,2]
[313120728,1706773838558,-13552.82211001,0.00017839,2]
[313120729,1706773838567,-24900.0,0.0001784,2]
[313120730,1706773838577,-618.4833921,0.00018193,2]
[313120731,1706773838586,-156.69239856,0.00018595,2]
[313120732,1706773838596,-612.41080233,0.00018596,2]
[313120733,1706773838605,-990.94239568,0.000189,2]
[313120734,1706773838614,-1582.96154034,0.00019,2]
[313120735,1706773838623,-169.523908,0.00019178,2]
[313120736,1706773838633,-169.845061,0.00019178,2]
[313120737,1706773838643,-500.0,0.00019831,2]
[313120738,1706773838653,-500.0,0.00019831,2]
[313120739,1706773838662,-1054.02,0.00019831,2]
[313120740,1706773838671,-500.0,0.00019831,2]
[313120741,1706773838680,-500.0,0.00019831,2]
[313120742,1706773838689,-466.27657632,0.00019832,2]
[313120743,1706773838699,-500.0,0.00019832,2]
[313120744,1706773838708,-500.0,0.00019832,2]
[313120745,1706773838717,-500.0,0.00019832,2]
[313120746,1706773838726,-500.0,0.00019832,2]
[313120747,1706773838735,-500.0,0.00019832,2]
[313120748,1706773838746,-500.0,0.00019832,2]
[313120749,1706773838756,-500.0,0.00019832,2]
[313120750,1706773838765,-500.0,0.00019832,2]
[313120751,1706773838774,-500.0,0.00019832,2]
[313120752,1706773838783,-500.0,0.00019832,2]
[313120753,1706773838792,-500.0,0.00019832,2]
[313120754,1706773838801,-500.0,0.00019832,2]
[313120755,1706773838811,-500.0,0.00019832,2]
[313120756,1706773838821,-500.0,0.00019832,2]
[313120757,1706773838831,-500.0,0.00019832,2]
[313120758,1706773838841,-705.92,0.00019832,2]
[313120759,1706773838850,-500.0,0.00019832,2]
[313120760,1706773838860,-621.78202823,0.00019833,2]
[313120761,1706773838869,-683.46496987,0.00019833,2]
[313120762,1706773838878,-343.67151097,0.00019833,2]
[313120763,1706773838887,-1650.69999335,0.00019833,2]
[313120764,1706773838897,-155.01550155,0.00019833,2]
[313120765,1706773838906,-155.01550155,0.00019833,2]
[313120766,1706773838915,-1012.27629002,0.00019833,2]
[313120767,1706773838924,-1111.36041845,0.00019833,2]
[313120768,1706773838934,-155.01550155,0.00019833,2]
[313120769,1706773838944,-236.09951915,0.00019833,2]
[313120770,1706773838953,-155.01550155,0.00019833,2]
[313120771,1706773838963,-155.01550155,0.00019833,2]
[313120772,1706773838973,-174232.32453427,0.00019833,2]
[313120773,1706773838983,-155.91470064,0.0002,2]
[313120774,1706773838993,-156.07947287,0.0002,2]
[313120775,1706773839003,-500.0,0.00020105,2]
[313120776,1706773839011,-500.0,0.00020105,2]
[313120777,1706773839020,-1054.02,0.00020105,2]
[313120778,1706773839030,-500.0,0.00020105,2]
[313120779,1706773839039,-500.0,0.00020105,2]
[313120780,1706773839048,-500.0,0.00020106,2]
[313120781,1706773839057,-500.0,0.00020106,2]
[313120782,1706773839066,-500.0,0.00020106,2]
[313120783,1706773839075,-500.0,0.00020106,2]
[313120784,1706773839085,-492.52543003,0.00020106,2]
[313120785,1706773839093,-500.0,0.00020106,2]
[313120786,1706773839102,-500.0,0.00020106,2]
[313120787,1706773839121,-382.72395324,0.00020106,2]
[313120788,1706773839133,-705.92,0.00020106,2]
[313120789,1706773839142,-618.07510336,0.00020106,2]
[313120790,1706773839155,-500.0,0.00020379,2]
[313120791,1706773839165,-500.0,0.00020379,2]
[313120792,1706773839174,-1054.02,0.00020379,2]
[313120793,1706773839183,-500.0,0.00020379,2]
[313120794,1706773839192,-500.0,0.00020379,2]
[313120795,1706773839204,-500.0,0.0002038,2]
[313120796,1706773839214,-500.0,0.0002038,2]
[313120797,1706773839224,-500.0,0.0002038,2]
[313120798,1706773839233,-500.0,0.0002038,2]